Cogmind - Beta 10.2 @@@ ROGUE MODE // 2020.12.26 @ 17:11:10 Player: aperiodic Result: Destroyed by S-43 Plague with Heavy Machine Gun Performance ------------- Evolutions (7) 3500 Regions Visited (26) 5200 Robots Destroyed (618) 3090 Value Destroyed (33277) 33277 Prototype IDs (81) 1620 Alien Tech Used (0) 0 Bonus (19865) 19865 TOTAL SCORE: 66552 Bonus ------- Triggered High Security 500 High Alert Combat Kills 11274 Follower Combat Kills 6317 Entered Garrisons 1400 Used RIF Installer 3500 Aligned with FarCom 300 Friendly Fire -3426 Cogmind --------- Core Integrity 0/1300 Matter 226/300 Energy 99/100 System Corruption 6% Temperature Cool (0) Movement Core (50) Location -3/Research Parts ------- > --- POWER (2) -------- (None) > --- PROPULSION (4) --- (None) > --- UTILITY (12) ----- (None) > --- WEAPON (3) ------- (None) > --- INVENTORY (4) ---- Advanced Hacking Suite Relay Coupler [Hunter] (25) Heavy Disruptor Cannon Peak State ------------ > --- POWER ------------ Light Particle Reactor Light Quantum Reactor > --- PROPULSION ------- Medium Treads Biometal Medium Treads Armored Heavy Treads > --- UTILITY ---------- Improved Fusion Compressor Advanced Heat Sink Advanced Cooling System High-capacity Storage Unit High-capacity Storage Unit High-capacity Storage Unit High-capacity Storage Unit Heavy Reflective Plating Advanced Force Field Hacking Suite Relay Coupler [NC] > --- WEAPON ----------- Compact HERF Cannon Compact HERF Cannon Hellfire Missile Launcher > --- INVENTORY -------- Reinforced Antimatter Reactor Light Particle Reactor Armored Heavy Treads Improved Energy Well High-capacity Matter Pod Long-range Terrain Scanner Damper Plating Advanced Thermal Defense Suite Relay Coupler [NC] Relay Coupler [Grunt] Relay Coupler [Sentry] Relay Coupler [Hunter] Relay Coupler [Hunter] Relay Coupler [Hunter] Improved System Backup Module Advanced Recalibrator Army-in-a-Box Gamma Rifle HERF Cannon Heavy Disruptor Cannon Heavy Disruptor Cannon Enhanced Nova Cannon Enhanced Nova Cannon Enhanced Nova Cannon KE Penetrator Mini Smartbomb Launcher [Rating: 139] Favorites ----------- Power Heavy Antimatter Reactor Engine Reinforced Deuterium Engine Power Core Reinforced Fission Core Reactor Heavy Antimatter Reactor Propulsion Light Treads Treads Light Treads Leg Flexi-carbon Leg Wheel Armored Wheel Utility High-capacity Storage Unit Device Advanced Heat Sink Storage High-capacity Storage Unit Processor Advanced Targeting Computer Hackware Hacking Suite Protection Improved Medium Armor Plating Weapon KE Penetrator Energy Gun Medium Laser Energy Cannon Enhanced Nova Cannon Ballistic Gun KE Penetrator Ballistic Cannon Mass Driver Launcher Improved Proton Missile Launcher Special Weapon Improved Remote Datajack Impact Weapon Heavy Hammer Slashing Weapon Segregator Build | -11 -10 -10 -10 -9 -8 -8 -7 -7 -7 -7 -6 -6 -6 -6 -6 -6 -5 -5 -5 -4 -4 -4 -4 -4 -4 -3 ------- Run | Scr Mat Min Exi Min Mat Gar Fac Was Fac Gar Fac Was Fac Gar Fac Gar Fac Gar Fac Fac Was Fac Gar Fac Gar Res Slots Evolved 14 | . . . . . 4 . 2 . . . 2 . . . . . 2 . . 2 . . . . . 2 Power 1 | . . . . . . . . . . . . . . . . . 1 . . . . . . . . . Propulsion 2 | . . . . . . . . . . . . . . . . . . . . 2 . . . . . . Utility 10 | . . . . . 4 . 2 . . . 2 . . . . . 1 . . . . . . . . 1 Weapon 1 | . . . . . . . . . . . . . . . . . . . . . . . . . . 1 Parts Attached 723 | 6 22 2 2 4 16 21 21 5 46 23 35 10 3 32 28 37 45 44 80 26 21 63 41 20 37 33 Power 51 | 1 2 1 . . 1 2 1 1 2 2 1 2 . . 1 . 3 6 6 3 9 3 1 1 1 1 Engine 19 | 1 2 . . . . . 1 . 1 1 1 2 . . . . 1 1 2 1 5 . . . . . Core 18 | . . 1 . . 1 2 . . . 1 . . . . 1 . 2 5 2 . 2 . 1 . . . Reactor 14 | . . . . . . . . 1 1 . . . . . . . . . 2 2 2 3 . 1 1 1 Propulsion 74 | 2 3 . . 4 5 3 1 1 2 2 6 . . 2 3 4 3 2 14 4 3 2 1 1 2 4 Treads 55 | . 3 . . 4 5 3 . 1 . 2 3 . . . 3 4 3 2 10 . 2 2 1 1 2 4 Leg 7 | . . . . . . . . . . . . . . . . . . . 2 4 1 . . . . . Wheel 12 | 2 . . . . . . 1 . 2 . 3 . . 2 . . . . 2 . . . . . . . Hover . | . . . . . . . . . . . . . . . . . . . . . . . . . . . Flight . | . . . . . . . . . . . . . . . . . . . . . . . . . . . Utility 214 | 1 5 . 2 . 8 3 7 3 7 6 6 6 3 8 10 7 10 15 17 8 4 25 17 11 13 12 Device 73 | . . . . . 2 1 2 1 1 1 2 3 . . 2 1 1 6 7 6 1 12 7 5 8 4 Storage 27 | 1 5 . 2 . . 1 . 1 1 . . . 1 . 2 2 1 . . 1 . 7 1 1 . . Processor 3 | . . . . . . . . 1 . . . . . . . . . . . . 1 . . . . 1 Hackware 47 | . . . . . 1 . 2 . 3 4 1 1 2 5 2 3 3 2 5 1 . 2 5 2 . 3 Protection 64 | . . . . . 5 1 3 . 2 1 3 2 . 3 4 1 5 7 5 . 2 4 4 3 5 4 Artifact . | . . . . . . . . . . . . . . . . . . . . . . . . . . . Weapon 384 | 2 12 1 . . 2 13 12 . 35 13 22 2 . 22 14 26 29 21 43 11 5 33 22 7 21 16 Energy Gun 8 | . 2 . . . . . . . . . . . . . . . . . 3 . . . . . 1 2 Energy Cannon 37 | . . . . . . . . . 3 . 1 . . 1 2 . . . 3 . . . 4 4 13 6 Ballistic Gun 155 | 2 5 1 . . 2 8 7 . 19 6 11 2 . 15 8 12 12 13 14 . 2 7 5 . 3 1 Ballistic Cannon 21 | . . . . . . . . . . . . . . . 2 3 3 . 1 4 . 8 . . . . Launcher 92 | . . . . . . . 4 . 11 4 6 . . 1 . 7 7 5 12 3 1 9 10 3 3 6 Special Weapon 68 | . 3 . . . . 5 1 . 2 3 4 . . 5 2 4 7 3 10 4 1 9 3 . 1 1 Impact Weapon 2 | . 2 . . . . . . . . . . . . . . . . . . . . . . . . . Slashing Weapon 1 | . . . . . . . . . . . . . . . . . . . . . 1 . . . . . Piercing Weapon . | . . . . . . . . . . . . . . . . . . . . . . . . . . . Special Melee Weapon . | . . . . . . . . . . . . . . . . . . . . . . . . . . . Unidentified Prototypes 6 | . . . . . . . . . 1 . . . . . 1 . . . . . 1 . . 1 . 2 Parts Lost 111 | . 1 . . . . 5 . . 2 4 3 . . 5 2 3 10 9 32 5 3 1 1 . 6 19 Power 14 | . . . . . . . . . . 1 . . . . . . 3 . 4 1 3 . . . . 2 Propulsion 26 | . . . . . . 2 . . . 1 2 . . 1 1 1 3 2 8 2 . . . . . 3 Utility 46 | . . . . . . 3 . . 2 2 1 . . 2 1 2 4 6 9 . . 1 . . 3 10 Weapon 25 | . 1 . . . . . . . . . . . . 2 . . . 1 11 2 . . 1 . 3 4 Highest Loss Streak 12 | . 1 . . . . 2 . . 1 2 3 . . 3 2 1 4 4 12 3 1 1 1 . 6 12 Average Slot Usage (%) 90 | . 95 100 100 100 96 94 93 92 88 86 88 71 80 93 98 94 88 89 93 81 96 84 89 88 92 78 Engine 2 | . 14 10 . . . . 3 1 3 . 5 6 6 6 2 . 3 . . 3 2 . . . . . Core 3 | . . 3 14 14 9 9 3 . . 4 . . . . 3 6 6 10 6 . 2 . 3 1 . . Reactor 2 | . . . . . . . . 5 3 . . . . . . . . . 2 4 4 9 6 8 10 7 Treads 10 | . 19 28 28 28 18 17 7 1 2 13 4 . . . 11 12 10 10 9 . 1 12 15 15 14 11 Wheel 2 | . 8 . . . . . 3 5 4 . 5 6 6 12 . . . . . 2 . . . . . . Device 6 | . . . . . 5 8 7 7 3 6 5 6 5 . 5 8 5 7 9 12 17 5 6 8 20 15 Storage 21 | . 23 28 28 28 18 20 23 23 23 23 20 20 20 20 20 22 23 23 22 18 21 19 21 21 21 17 Processor 2 | . . . . . . . . 1 7 7 6 6 6 6 6 6 4 . . . 1 . . . . . Hackware 12 | . . . . . 3 . 14 15 18 10 15 3 7 16 21 15 10 9 18 14 15 17 18 16 9 7 Protection 7 | . . . . . 24 19 12 13 3 1 9 7 12 17 10 7 6 11 6 . . 6 6 5 5 6 Ballistic Gun 9 | . 16 23 28 28 18 17 13 15 14 7 7 12 13 7 11 7 5 8 5 . 1 4 2 . 1 . Launcher 1 | . . . . . . . 1 . . 1 3 . . . . 2 3 1 1 2 1 1 2 1 . 3 Special Weapon 1 | . 5 5 . . . . . . . 3 1 . . 4 1 1 . . 1 1 5 2 3 5 . . Naked Turns 126 | . . . . . . . . . . . . . . . . . . . . . . . . . . 126 Heaviest Build 231 | 9 42 41 73 73 92 118 144 145 148 148 163 201 188 166 158 167 197 209 196 152 154 199 222 231 215 230 Greatest Support 140 | 20 40 40 40 40 40 40 40 70 70 40 48 28 28 28 58 56 48 46 53 103 140 140 124 124 114 123 Greatest Overweight (x) 62 | . 1 1 1 1 2 4 5 5 5 41 7 62 6 48 12 5 6 4 12 7 41 1 1 1 2 3 Average Overweight (x) 2 | . . . 1 1 1 2 3 4 2 2 4 9 5 10 2 2 3 4 3 2 1 1 1 1 1 . Largest Inventory Capacity 42 | 6 16 16 20 20 20 28 28 28 28 28 28 28 28 28 36 36 36 36 36 32 32 36 42 36 36 36 Average Capacity 29 | 5 12 16 18 20 20 22 28 28 28 28 28 28 28 28 28 30 36 36 35 30 32 29 36 36 36 33 Most Carried 36 | 6 16 16 20 20 20 26 28 28 28 28 28 28 28 28 28 36 36 36 36 32 32 34 36 36 36 36 Average Carried 27 | 3 10 15 17 19 19 19 27 27 26 25 27 26 27 27 27 29 34 33 32 26 31 28 35 34 33 31 Final Capacity 36 | 6 16 16 20 20 20 28 28 28 28 28 28 28 28 28 28 36 36 36 28 32 32 36 36 36 36 4 Final Carried 36 | 5 16 16 20 20 20 26 28 28 24 28 28 27 28 28 27 36 34 36 20 32 32 34 36 33 36 4 Class Distribution -------------------- 46% | Bothacker-Mutant 25% | Hauler-Mutant 15% | Botlord-Mutant 6% | Mutant 3% | Hacker-Mutant Dominant Class ---------------- Mutant | -10/Materials Mutant | -10/Mines Hauler-Mutant | -10/Exiles Hauler-Mutant | -9/Mines Hauler-Mutant | -8/Materials Hauler-Mutant | -8/Garrison Hauler-Mutant | -7/Factory Hauler-Mutant | -7/Waste Hauler-Mutant | -7/Factory Bothacker-Mutant | -7/Garrison Bothacker-Mutant | -6/Factory Bothacker-Mutant | -6/Waste Bothacker-Mutant | -6/Factory Bothacker-Mutant | -6/Garrison Bothacker-Mutant | -6/Factory Bothacker-Mutant | -6/Garrison Bothacker-Mutant | -5/Factory Bothacker-Mutant | -5/Garrison Botlord-Mutant | -5/Factory Bothacker-Mutant | -4/Factory Bothacker-Mutant | -4/Waste Bothacker-Mutant | -4/Factory Botlord-Mutant | -4/Garrison Botlord-Mutant | -4/Factory Hauler-Mutant | -4/Garrison Hauler-Mutant | -3/Research Resources | -11 -10 -10 -10 -9 -8 -8 -7 -7 -7 -7 -6 -6 -6 -6 -6 -6 -5 -5 -5 -4 -4 -4 -4 -4 -4 -3 ----------- Run | Scr Mat Min Exi Min Mat Gar Fac Was Fac Gar Fac Was Fac Gar Fac Gar Fac Gar Fac Fac Was Fac Gar Fac Gar Res Matter Collected 21888 | 286 408 110 . 108 749 844 383 230 1913 547 897 318 158 942 698 975 1507 1479 2112 568 614 1462 1067 861 740 1912 Remotely . | . . . . . . . . . . . . . . . . . . . . . . . . . . . Salvage Created 29747 | 101 606 8 . 84 1287 945 618 79 3657 563 1212 399 191 779 648 1193 2094 1264 3524 673 548 2229 1019 1106 1522 3398 Parts 1262 | 8 44 . . 4 97 47 21 6 204 23 44 4 15 25 24 40 85 50 130 27 3 106 51 44 57 103 Haulers Intercepted 11 | . 2 . . . 4 . . . 3 . . . . . . . . . 1 . . . . . . 1 Recyclers Shooed 37 | . 2 . . . 1 . 1 . 1 . 1 . 1 . 2 . 5 . 8 1 . 11 . 1 . 2 Parts Field Recycled 22 | . . . . . . . . . . . . . . . . . . . . . . 22 . . . . Retrieved Matter 365 | . . . . . . . . . . . . . . . . . . . . . . 365 . . . . Parts Self-Destructed . | . . . . . . . . . . . . . . . . . . . . . . . . . . . Prevented . | . . . . . . . . . . . . . . . . . . . . . . . . . . . Kills | -11 -10 -10 -10 -9 -8 -8 -7 -7 -7 -7 -6 -6 -6 -6 -6 -6 -5 -5 -5 -4 -4 -4 -4 -4 -4 -3 ------- Run | Scr Mat Min Exi Min Mat Gar Fac Was Fac Gar Fac Was Fac Gar Fac Gar Fac Gar Fac Fac Was Fac Gar Fac Gar Res Combat Hostiles Destroyed 484 | . 14 1 . 2 17 23 6 . 53 15 17 1 2 13 7 21 34 25 42 9 1 42 17 24 28 70 Melee 2 | . . . . . . 1 . . . . . . . . . . . 1 . . . . . . . . Guns 180 | . 14 1 . 2 17 22 2 . 32 6 6 1 2 10 6 6 8 12 21 . 1 7 . . 2 2 Cannons 56 | . . . . . . . . . 2 1 . . . . 1 3 6 . 3 6 . 11 . 4 7 12 AOE 207 | . . . . . . . 4 . 19 7 9 . . 3 . 9 15 10 14 1 . 19 12 20 15 50 Classes Destroyed 23 | 2 6 1 . 1 2 1 2 1 1 . 1 1 . 1 . . . . . . . 1 . 1 . 1 Worker 26 | . 1 . . . 6 . . . 4 . 3 . 2 . 1 . 2 . 2 . . 1 . . . 4 Builder 31 | . . . . . . . . . 8 . . . . . 1 . 5 . 5 . . 4 . . . 8 Tunneler 3 | 1 . . . . . . . . . . . . . . . . . . . . . . . . . 2 Hauler 11 | . 2 . . . 4 . . . 3 . . . . . . . . . 1 . . . . . . 1 Recycler 30 | 1 1 . . . 2 . 4 . 7 . . . . . 1 . . . 3 1 . 5 . 1 . 4 Mechanic 6 | . . . . . . . 1 . . . 2 . . . . . . . 2 . . . . . . 1 Operator 8 | . 2 . . . 1 . . . 1 . . . 2 . . . 1 . . . . . . 1 . . Drone 6 | . . . . . . . . . . . . . . . . . . . . . . . . . . 6 Watcher 14 | . 2 . . . 4 . 1 . 1 1 1 . . . . . . . 1 . . 1 . 1 1 . Swarmer 90 | . 7 . . . 5 7 . . 11 5 . . . 3 . 2 . 11 . . . 8 7 7 12 5 Saboteur 7 | . . . . . . . . . . . 1 . . . . . . . . . . . . 1 . 5 Grunt 203 | . 7 . . 1 5 10 4 . 23 6 10 . 1 5 4 12 17 5 24 3 . 12 5 11 6 32 Brawler 22 | . . . . . . 2 . . 2 2 . . . . . 3 3 1 3 . . . . . . 6 Duelist 24 | . . . . 1 . . . . 1 . 2 . . . 1 3 3 . 5 . . . . 2 1 5 Protector 3 | . . . . . . . . . . . . . . . . . . . . . . 1 . . . 2 Sentry 53 | . . . . . 5 4 1 . 11 2 . . . 3 2 1 4 5 3 1 . 3 . 1 4 3 Specialist 1 | . . . . . . . . . . . . . . . . . . . . . . . . 1 . . Hunter 27 | . . . . . 2 . . . . . 1 . 1 . . . 3 3 1 . . 2 3 . 4 7 Programmer 46 | . . . . . . . 1 . 5 . 1 . . 1 1 . 4 . 6 5 . 16 . 1 . 5 Behemoth 4 | . . . . . . . . . . . . . . 1 . . . . . . . . 2 . 1 . Compactor 2 | . . . . . . . . . . . . 1 . . . . . . . . 1 . . . . . Assembled 1 | . . 1 . . . . . . . . . . . . . . . . . . . . . . . . Surgeon 1 | . . . . . . . . . . . . . . 1 . . . . . . . . . . . . Thug 2 | . . . . . . . . . . . 2 . . . . . . . . . . . . . . . Martyr 4 | . . . . . . . . 2 . . . 2 . . . . . . . . . . . . . . Best Kill Streak 19 | 2 3 1 . 2 5 8 4 . 7 5 5 1 2 4 4 5 9 5 7 3 1 8 5 8 5 19 Combat Bots Only 13 | . 3 1 . 2 3 8 4 . 6 5 5 1 1 4 2 5 6 5 6 2 1 5 5 8 5 13 Max Kills in Single Turn 5 | 1 1 1 . 1 2 2 2 1 4 2 3 1 2 2 2 2 4 3 5 1 1 3 4 3 4 5 Gunslinging 1 | . . . . . 1 1 . . . . . . . . . . . . . . . . . . . . Exploded 4 | . . . . . . . 2 . 3 2 2 . . 2 . 2 4 3 3 1 . 3 4 3 4 4 Melee 1 | . . . . . . 1 . . . . . . . . . . . 1 . . . . . . . . Uniques/NPCs Destroyed . | . . . . . . . . . . . . . . . . . . . . . . . . . . . Combat | -11 -10 -10 -10 -9 -8 -8 -7 -7 -7 -7 -6 -6 -6 -6 -6 -6 -5 -5 -5 -4 -4 -4 -4 -4 -4 -3 -------- Run | Scr Mat Min Exi Min Mat Gar Fac Was Fac Gar Fac Was Fac Gar Fac Gar Fac Gar Fac Fac Was Fac Gar Fac Gar Res Damage Taken 33395 | . 602 . . . 383 1132 281 190 2755 1330 1440 43 71 1895 747 853 3397 2512 4930 842 40 1460 705 267 2612 4908 Core 3993 | . 91 . . . 71 105 7 52 346 119 97 12 . 124 37 56 258 93 572 145 40 145 78 5 218 1322 Absorbed by Shields 2510 | . . . . . . . . . . . . . . . . 5 . . . . . . . 102 861 1542 Reduced by Siege Mode 260 | . . . . . . . . . . . . . . . . . . . . . . 19 17 . 145 79 Core Remaining (%) 52 | 100 . . . 63 . 68 . . . 25 . . . . . 61 . . 7 . . . . . 45 . Volleys Fired 1846 | 13 101 13 1 7 76 87 24 12 175 50 76 28 16 90 60 63 99 94 166 80 32 130 100 68 70 115 Largest 3 | 2 2 2 2 2 2 2 2 2 2 2 2 2 2 2 2 2 2 2 2 2 1 2 2 1 2 3 Hottest 257 | 40 120 40 40 40 56 100 100 56 138 138 82 66 66 69 90 86 86 86 120 122 57 106 240 120 208 257 Shots Fired 2852 | 26 164 26 2 14 152 161 46 24 333 75 127 54 32 139 102 82 164 147 243 96 32 198 109 68 91 145 Gun 1879 | 26 142 26 2 14 152 150 40 24 300 39 96 52 32 112 91 43 76 116 146 . 29 92 47 . 18 14 Cannon 417 | . . . . . . . . . 5 16 . . . 3 6 11 40 . 28 62 2 57 25 30 60 72 Launcher 353 | . . . . . . . 4 . 20 7 28 . . 4 . 19 38 29 40 18 . 31 27 16 13 59 Special 203 | . 22 . . . . 11 2 . 8 13 3 2 . 20 5 9 10 2 29 16 1 18 10 22 . . Kinetic 1973 | 26 105 26 2 14 152 150 40 24 300 39 96 52 32 112 95 54 116 116 132 45 31 149 47 . 18 . Thermal 205 | . 59 . . . . 11 2 . . . . . . . 2 . . . 42 17 . . 14 28 13 17 Explosive 127 | . . . . . . . 4 . 1 7 . . . . . 3 1 . . 5 . 13 7 16 11 59 Electromagnetic 379 | . . . . . . . . . 24 16 28 . . 7 . 16 37 29 40 13 . 18 31 2 49 69 Robot Hit Streak 32 | 8 17 5 . 7 12 21 13 15 14 11 13 12 11 16 15 19 16 20 14 13 11 32 15 13 32 23 Robot Miss Streak 12 | 2 5 2 . 2 4 6 3 2 5 5 4 1 2 6 4 5 6 5 12 2 3 2 2 2 2 2 Penetration Max 1 | . . . . . 1 1 . 1 1 . 1 1 1 1 1 1 1 . 1 . . 1 1 . 1 . Secondary Targets 18 | . 2 . . . 1 4 . . 2 1 2 . . 2 . . 1 2 1 . . . . . . . Max Gunslinging Chain 1 | . 1 . . . 1 1 . . 1 1 1 . . 1 . . 1 1 1 . . . . . . . Shots Hit Robots 1944 | 19 91 14 . 7 97 104 28 20 223 60 78 47 22 94 68 65 137 103 183 57 29 149 60 40 63 86 Core Hits 1441 | 5 37 4 . 4 48 41 19 7 165 39 70 11 10 48 23 66 148 105 143 14 5 86 40 44 53 206 Critical Hits 65 | . . . . . 1 1 . 1 6 . 3 6 4 7 8 2 2 3 5 3 2 6 1 1 3 . Critical Kills 22 | . . . . . . 1 . . 2 . 2 . 1 2 3 . . . 5 1 1 2 . . 2 . Critical Parts Destroyed 30 | . . . . . . . . 1 2 . 1 3 3 4 5 1 1 3 . 2 . 4 . . . . Melee Attacks 13 | . 10 . . . . . . . . . . . . . . . . . . . 3 . . . . . Thermal 3 | . . . . . . . . . . . . . . . . . . . . . 3 . . . . . Impact 10 | . 10 . . . . . . . . . . . . . . . . . . . . . . . . . Slashing . | . . . . . . . . . . . . . . . . . . . . . . . . . . . Piercing . | . . . . . . . . . . . . . . . . . . . . . . . . . . . Sneak Attacks 1 | . 1 . . . . . . . . . . . . . . . . . . . . . . . . . Combat Hostiles . | . . . . . . . . . . . . . . . . . . . . . . . . . . . Follow-up Attacks . | . . . . . . . . . . . . . . . . . . . . . . . . . . . Damage Inflicted 83701 | 149 987 169 . 113 1871 2127 929 490 7317 1657 3652 1176 565 1787 1374 2646 5629 3204 7256 1939 614 8822 2776 4408 3806 18238 Guns 27773 | 149 918 169 . 88 1854 2105 571 490 4493 411 1191 1176 565 1230 1270 800 1612 1930 2984 . 551 2004 415 . 409 388 Cannons 10665 | . . . . . . . . . 84 401 . . . 56 104 335 966 . 591 1464 63 1679 238 866 1600 2218 Explosions 44730 | . . . . . . . 358 . 2683 845 2461 . . 501 . 1511 3051 1216 3681 475 . 5004 2123 3392 1797 15632 Melee 48 | . 48 . . . . . . . . . . . . . . . . . . . . . . . . . Ramming 485 | . 21 . . 25 17 22 . . 57 . . . . . . . . 58 . . . 135 . 150 . . Kinetic 30814 | 149 625 169 . 88 1854 2105 571 490 4493 411 1191 1176 565 1230 1374 1135 2578 1930 2608 951 614 3683 415 . 409 . Thermal 8883 | . 293 . . . . . . . 1154 96 776 . . 70 . . 1047 . 2183 513 . 524 169 824 525 709 Explosive 26117 | . . . . . . . 358 . 65 749 . . . . . 237 61 . 101 . . 3336 956 3392 1370 15492 Electromagnetic 17354 | . . . . . . . . . 1548 401 1685 . . 487 . 1274 1943 1216 2364 475 . 1144 1236 42 1502 2037 Impact 48 | . 48 . . . . . . . . . . . . . . . . . . . . . . . . . Slashing . | . . . . . . . . . . . . . . . . . . . . . . . . . . . Piercing . | . . . . . . . . . . . . . . . . . . . . . . . . . . . Highest Corruption 32 | . . . . . . . . . 2 2 . . . . 2 7 9 10 32 6 2 . . 1 1 6 Average Corruption 4 | . . . . . . . . . 1 2 . . . . 1 6 2 9 13 3 1 . . 1 1 4 Corruption Purged 7 | . . . . . . . . . . . . . . . . . . . . 4 2 . . . 1 . Effects 480 | . . . . . . . . . 19 14 . . . . 5 81 24 112 167 19 5 . . 2 11 21 Message Errors 103 | . . . . . . . . . 8 6 . . . . 3 20 7 20 25 4 2 . . . 7 1 Matter Fused 62 | . . . . . . . . . . . . . . . . 19 . 18 17 2 . . . . . 6 Heat Flow Errors 53 | . . . . . . . . . 3 4 . . . . . 8 3 11 16 4 2 . . . . 2 Energy Discharges 45 | . . . . . . . . . 5 . . . . . . 8 2 17 8 2 1 . . . 1 1 Parts Rejected 6 | . . . . . . . . . . . . . . . . 2 . 1 3 . . . . . . . Data Loss (minor) 57 | . . . . . . . . . 2 1 . . . . 2 10 4 15 14 3 . . . 1 3 2 Data Loss (major) 13 | . . . . . . . . . . . . . . . . 5 . 1 6 . . . . . . 1 Misfires 10 | . . . . . . . . . . . . . . . . 4 . 5 1 . . . . . . . Alerts 3 | . . . . . . . . . . . . . . . . . . 3 . . . . . . . . Misdirections 13 | . . . . . . . . . . . . . . . . . . 4 9 . . . . . . . Targeting Errors 94 | . . . . . . . . . 1 3 . . . . . 5 6 15 54 3 . . . 1 . 6 Weapon Failures 21 | . . . . . . . . . . . . . . . . . 2 2 14 1 . . . . . 2 Overload Shots . | . . . . . . . . . . . . . . . . . . . . . . . . . . . Overflow Damage 2332 | . 28 . . . . . 4 . 153 59 285 . . . . 25 61 17 323 70 . 348 41 262 4 652 Projectiles 412 | . . . . . . . . . . 59 . . . . . . . . 10 70 . 168 . 38 . 67 Explosions 1858 | . . . . . . . 4 . 153 . 285 . . . . 25 61 17 313 . . 180 41 190 4 585 Melee 62 | . 28 . . . . . . . . . . . . . . . . . . . . . . 34 . . Knockbacks 40 | . . . . 1 . . . . . . . . . . 2 2 16 . 2 5 . 11 . 1 . . Impact 3 | . . . . 1 . . . . . . . . . . . . . . . . . 1 . 1 . . Kinetic 37 | . . . . . . . . . . . . . . . 2 2 16 . 2 5 . 10 . . . . Secondary . | . . . . . . . . . . . . . . . . . . . . . . . . . . . Self-Inflicted Damage 806 | . . . . . . . . . 136 . 24 . . 2 . . 63 76 243 14 . . 39 . 151 58 Shots 31 | . . . . . . . . . 3 . 3 . . 2 . . 3 5 7 2 . . 2 . 3 1 Rammed 41 | . 3 1 . 7 3 3 . . 5 . . . . . 1 . . 3 . . . 10 . 5 . . Targets Rammed 45 | . 3 1 . 7 3 4 . . 5 . . . . . 1 . . 4 . . . 12 . 5 . . Kicked . | . . . . . . . . . . . . . . . . . . . . . . . . . . . Crushed 4 | . . . . . . 1 . . . . . . . . . . . 1 . . . 2 . . . . Highest Temperature 477 | . 194 . . . 248 422 . . 294 288 11 6 150 397 . 160 272 226 286 477 186 435 220 360 127 378 Average Temperature 78 | . 47 . . . 81 147 . . 60 97 5 4 76 95 . 70 57 51 70 141 85 101 50 86 23 64 Received Heat Transfer 6208 | . 162 . . . 54 414 87 9 636 291 327 . 27 573 150 306 507 369 747 120 . 285 78 46 481 539 Effects 32 | . . . . . . 4 . . 3 . . . . 1 . . . . 9 6 . 8 . 1 . . Shutdowns 5 | . . . . . . . . . . . . . . 1 . . . . . 2 . 2 . . . . Energy Bleed 7 | . . . . . . 1 . . . . . . . . . . . . 2 1 . 2 . 1 . . Interference 13 | . . . . . . 1 . . 3 . . . . . . . . . 7 . . 2 . . . . Short Circuit 1 | . . . . . . . . . . . . . . . . . . . . . . 1 . . . . Damage (minor) 1 | . . . . . . . . . . . . . . . . . . . . . . 1 . . . . Damage (major) 5 | . . . . . . 2 . . . . . . . . . . . . . 3 . . . . . . Siege Activations 22 | . . . . . . . . . . . . . . . . . . . . . . 3 4 3 6 6 Total Turns 541 | . . . . . . . . . . . . . . . . . . . . . . 49 255 26 117 94 Longest Duration 212 | . . . . . . . . . . . . . . . . . . . . . . 28 212 19 61 27 Robots Corrupted 39 | . . . . . . . . . . 1 2 . . . . 3 5 2 4 2 . 5 5 . 4 6 Combat Hostiles 39 | . . . . . . . . . . 1 2 . . . . 3 5 2 4 2 . 5 5 . 4 6 Parts Fried 134 | . . . . . . . . . 11 1 12 . . 4 . 7 12 12 17 8 . 12 5 . 14 19 Impact Corruptions 3 | . 1 . . . . . . . . . . . . . . . . . . . . . . 2 . . Robots Melted . | . . . . . . . . . . . . . . . . . . . . . . . . . . . Combat Hostiles . | . . . . . . . . . . . . . . . . . . . . . . . . . . . Parts Melted 7 | . . . . . . . . . . . . . . . . . . . 3 . . . 1 . 1 2 Heat Transferred 8386 | . 851 . . . . . . . 950 100 450 . . 50 . . 850 . 2129 700 . 400 200 703 496 507 Parts Sabotaged 3 | . . . . . . . . . . . . . . . . . . . 1 . . . . . . 2 Parts Stolen . | . . . . . . . . . . . . . . . . . . . . . . . . . . . Parts Stripped . | . . . . . . . . . . . . . . . . . . . . . . . . . . . Power Chain Reactions 32 | . . . . . . . . . 7 1 . . . 1 . . 9 2 6 . . 3 1 . 1 1 Missiles Intercepted . | . . . . . . . . . . . . . . . . . . . . . . . . . . . Alert | -11 -10 -10 -10 -9 -8 -8 -7 -7 -7 -7 -6 -6 -6 -6 -6 -6 -5 -5 -5 -4 -4 -4 -4 -4 -4 -3 ------- Run | Scr Mat Min Exi Min Mat Gar Fac Was Fac Gar Fac Was Fac Gar Fac Gar Fac Gar Fac Fac Was Fac Gar Fac Gar Res Peak Influence 3199 | 10 197 46 . 63 373 1095 624 204 1622 1942 1847 653 588 777 480 834 1070 1286 1137 603 134 472 990 847 1987 3199 Initial 1135 | . 6 46 . . . 210 574 191 . 1135 1008 646 . 212 396 201 437 724 674 534 134 . 320 519 579 1117 Average 630 | 2 96 13 . 18 176 854 552 128 470 1603 1301 274 223 675 260 650 557 993 805 433 26 141 865 434 1581 1850 Maximum Alert Level 5 | . . . . . 1 3 2 1 5 5 5 2 2 3 2 3 3 4 4 2 . 2 3 3 5 5 Low Security (%) 27 | 100 100 100 . 100 54 . . 92 48 . . 42 43 . 29 . . . . . 100 64 . 18 . . Level 1 13 | . . . . . 45 8 . 7 5 . . 38 46 3 61 16 17 . . 42 . 34 3 24 . . Level 2 16 | . . . . . . 12 100 . 18 . . 19 10 27 8 36 65 . 15 57 . . 8 46 10 . Level 3 29 | . . . . . . 78 . . 14 . 54 . . 69 . 46 17 65 83 . . . 88 9 15 10 Level 4 5 | . . . . . . . . . 12 57 10 . . . . . . 34 . . . . . . 4 37 Level 5 6 | . . . . . . . . . . 42 34 . . . . . . . . . . . . . 69 22 High Security . | . . . . . . . . . . . . . . . . . . . . . . . . . . 28 Max Security . | . . . . . . . . . . . . . . . . . . . . . . . . . . . Squads Dispatched 150 | . 4 . . . 2 . 4 . 17 . 7 . 12 . 9 . 23 . 16 4 . 13 . 9 . 30 Investigation 19 | . 2 . . . 1 . . . 3 . 2 . 4 . 2 . 1 . 2 . . 2 . . . . Extermination 35 | . . . . . . . 1 . 5 . 1 . 3 . 4 . 4 . 3 3 . 7 . 3 . 1 Reinforcement 27 | . 2 . . . 1 . . . 4 . 1 . 1 . . . 5 . 6 . . 1 . 2 . 4 Assault 40 | . . . . . . . 3 . 3 . 3 . . . . . 1 . 5 . . 1 . 3 . 21 Garrison 29 | . . . . . . . . . 2 . . . 4 . 3 . 12 . . 1 . 2 . 1 . 4 Intercept . | . . . . . . . . . . . . . . . . . . . . . . . . . . . Construction Impeded 13 | . . . . . . . . . 2 . . . . . . . 3 . 4 . . . . 1 . 3 Haulers Reinforced 3 | . . . . . . . . . . . 1 . . . . . 1 . . . . 1 . . . . Stealth | -11 -10 -10 -10 -9 -8 -8 -7 -7 -7 -7 -6 -6 -6 -6 -6 -6 -5 -5 -5 -4 -4 -4 -4 -4 -4 -3 --------- Run | Scr Mat Min Exi Min Mat Gar Fac Was Fac Gar Fac Was Fac Gar Fac Gar Fac Gar Fac Fac Was Fac Gar Fac Gar Res Distress Signals 29 | . 2 1 . . 8 . . . . . 2 . . . . . 1 . 3 1 . 4 . 1 3 3 Communications Jammed . | . . . . . . . . . . . . . . . . . . . . . . . . . . . Distress Signals . | . . . . . . . . . . . . . . . . . . . . . . . . . . . Times Spotted 818 | . 37 7 . 3 24 21 17 5 84 28 35 6 22 27 12 35 57 28 75 21 1 50 20 42 31 130 Peak Tracking Total 25 | . 4 2 . 2 4 6 4 3 6 5 6 2 5 9 3 6 6 4 10 5 1 5 5 6 9 25 Tactical Retreats 54 | . 3 . . . 4 . . . 4 1 5 . . 2 1 1 3 4 8 4 . . 4 2 1 7 Traps | -11 -10 -10 -10 -9 -8 -8 -7 -7 -7 -7 -6 -6 -6 -6 -6 -6 -5 -5 -5 -4 -4 -4 -4 -4 -4 -3 ------- Run | Scr Mat Min Exi Min Mat Gar Fac Was Fac Gar Fac Was Fac Gar Fac Gar Fac Gar Fac Fac Was Fac Gar Fac Gar Res Traps Triggered 78 | . . . . . . 9 4 . 6 3 4 . . 5 . 9 1 7 3 1 . 1 18 . 7 . Indirectly 16 | . . . . . . . . . 2 . 2 . . . . 4 . 2 . . . . 5 . 1 . Trap Hack Attempts . | . . . . . . . . . . . . . . . . . . . . . . . . . . . Triggered . | . . . . . . . . . . . . . . . . . . . . . . . . . . . Disarmed . | . . . . . . . . . . . . . . . . . . . . . . . . . . . Reprogrammed . | . . . . . . . . . . . . . . . . . . . . . . . . . . . Reused . | . . . . . . . . . . . . . . . . . . . . . . . . . . . Traps Extracted . | . . . . . . . . . . . . . . . . . . . . . . . . . . . Installed . | . . . . . . . . . . . . . . . . . . . . . . . . . . . Triggered 2 | . . . . . . . . . . 1 . . . . . . . . . 1 . . . . . . Machines | -11 -10 -10 -10 -9 -8 -8 -7 -7 -7 -7 -6 -6 -6 -6 -6 -6 -5 -5 -5 -4 -4 -4 -4 -4 -4 -3 ---------- Run | Scr Mat Min Exi Min Mat Gar Fac Was Fac Gar Fac Was Fac Gar Fac Gar Fac Gar Fac Fac Was Fac Gar Fac Gar Res Machines Disabled 129 | . . . . 1 4 3 . . 19 4 10 . 3 5 5 6 9 7 9 4 . 15 7 4 11 3 Max in Single Turn 14 | . . . . 1 1 1 . . 14 1 3 . 1 1 1 1 8 2 2 1 . 5 2 2 2 1 Garrison Access 10 | . . . . . . . 3 . 3 . . . . . . . . . . 1 . 1 . 1 . 1 Garrison Relay 28 | . . . . . . 3 . . . 4 . . . 5 . 4 . 4 . . . . 4 . 4 . Phase Generator 1 | . . . . . . . . . . . . . . . . . . . . . . . . . 1 . Machines Sabotaged . | . . . . . . . . . . . . . . . . . . . . . . . . . . . Garrisons Compromised . | . . . . . . . . . . . . . . . . . . . . . . . . . . . Overloaded Fab Kills . | . . . . . . . . . . . . . . . . . . . . . . . . . . . Fab Network Shutdowns 2 | . . . . . . . . . . . 1 . . . . . . . . . . . . 1 . . Hacking | -11 -10 -10 -10 -9 -8 -8 -7 -7 -7 -7 -6 -6 -6 -6 -6 -6 -5 -5 -5 -4 -4 -4 -4 -4 -4 -3 --------- Run | Scr Mat Min Exi Min Mat Gar Fac Was Fac Gar Fac Was Fac Gar Fac Gar Fac Gar Fac Fac Was Fac Gar Fac Gar Res Machines Accessed 108 | . 7 . 2 . 5 . 2 . 27 . 5 . 9 . 7 . 3 . 6 3 . 14 . 15 . 3 Terminals 55 | . 6 . . . 2 . . . 15 . 2 . 4 . 2 . 1 . 4 1 . 7 . 10 . 1 Fabricators 13 | . . . . . . . . . 2 . 1 . 2 . 2 . . . 1 1 . 2 . 1 . 1 Repair Stations 11 | . 1 . . . 1 . . . 3 . . . . . 1 . 1 . 1 . . 2 . 1 . . Recycling Units 3 | . . . . . . . . . 1 . 1 . . . . . . . . . . 1 . . . . Scanalyzers 9 | . . . . . 1 . . . 2 . 1 . 2 . 1 . . . . . . 1 . 1 . . Garrison Access 15 | . . . . . 1 . 2 . 4 . . . 1 . 1 . 1 . . 1 . 1 . 2 . 1 Total Hacks 338 | . 27 . 4 . 14 . 6 . 81 . 15 . 32 . 20 . 14 . 15 8 . 40 . 57 . 5 Successful 213 | . 18 . 4 . 11 . 2 . 59 . 8 . 14 . 12 . 11 . 6 4 . 26 . 34 . 4 Failed 124 | . 8 . . . 3 . 4 . 22 . 7 . 18 . 8 . 3 . 9 4 . 14 . 23 . 1 Catastrophic 13 | . 2 . . . . . 1 . 3 . 2 . 1 . . . . . . 1 . 2 . 1 . . Database Lockouts 1 | . 1 . . . . . . . . . . . . . . . . . . . . . . . . . Manual 143 | . 18 . 1 . 5 . 4 . 37 . 3 . 23 . 3 . 5 . 6 4 . 13 . 20 . 1 Terminals 186 | . 21 . . . 7 . . . 49 . 6 . 16 . 5 . 7 . 10 3 . 16 . 44 . 2 Fabricators 42 | . . . . . . . . . 5 . 6 . 8 . 5 . . . 3 3 . 7 . 3 . 2 Repair Stations 37 | . 6 . . . 4 . . . 8 . . . . . 6 . 5 . 2 . . 5 . 1 . . Recycling Units 8 | . . . . . . . . . 2 . 1 . . . . . . . . . . 5 . . . . Scanalyzers 22 | . . . . . 2 . . . 5 . 2 . 5 . 1 . . . . . . 2 . 5 . . Garrison Access 39 | . . . . . 1 . 6 . 12 . . . 3 . 3 . 2 . . 2 . 5 . 4 . 1 Terminal Hacks 72 | . 7 . 4 . 1 . . . 20 . 1 . 5 . 2 . 4 . 2 . . 5 . 20 . 1 Record 3 | . . . 3 . . . . . . . . . . . . . . . . . . . . . . . Part Schematic 2 | . . . . . . . . . 1 . . . . . . . . . . . . . . 1 . . Robot Analysis 1 | . 1 . . . . . . . . . . . . . . . . . . . . . . . . . Prototype ID Bank 17 | . 4 . . . . . . . 6 . 1 . . . 1 . . . . . . 1 . 4 . . Branch Access Points 4 | . . . . . . . . . 1 . . . . . . . 1 . . . . 1 . 1 . . Machine Index 1 | . . . . . . . . . 1 . . . . . . . . . . . . . . . . . Terminal Index 4 | . 1 . . . . . . . . . . . 1 . . . . . . . . 1 . 1 . . Garrison Index 1 | . . . . . . . . . . . . . . . . . . . . . . . . 1 . . Alert Level 1 | . . . . . . . . . 1 . . . . . . . . . . . . . . . . . Unreport Threat 10 | . . . . . . . . . 1 . . . 3 . 1 . . . . . . 1 . 4 . . Locate Traps 12 | . 1 . . . . . . . 4 . . . . . . . 1 . 1 . . 1 . 3 . 1 Recall Extermination 1 | . . . . . . . . . . . . . . . . . . . . . . . . 1 . . Hauler Manifests 5 | . . . . . 1 . . . 1 . . . 1 . . . 1 . . . . . . 1 . . Zone Layout 9 | . . . . . . . . . 4 . . . . . . . 1 . 1 . . . . 3 . . EX-Prototype ID Bank 1 | . . . 1 . . . . . . . . . . . . . . . . . . . . . . . Fabricator Hacks 24 | . . . . . . . . . 4 . 4 . 3 . 2 . . . 1 2 . 5 . 1 . 2 Network Status 1 | . . . . . . . . . . . . . . . . . . . . . . 1 . . . . Load Schematic 11 | . . . . . . . . . 2 . 2 . 2 . 1 . . . 1 1 . 1 . . . 1 Build 12 | . . . . . . . . . 2 . 2 . 1 . 1 . . . . 1 . 3 . 1 . 1 Repair Station Hacks 27 | . 6 . . . 4 . . . 6 . . . . . 4 . 2 . 1 . . 4 . . . . Scan Component 14 | . 3 . . . 2 . . . 3 . . . . . 2 . 1 . 1 . . 2 . . . . Repair 13 | . 3 . . . 2 . . . 3 . . . . . 2 . 1 . . . . 2 . . . . Recycling Unit Hacks 3 | . . . . . . . . . . . . . . . . . . . . . . 3 . . . . Process 1 | . . . . . . . . . . . . . . . . . . . . . . 1 . . . . Retrieve Matter 2 | . . . . . . . . . . . . . . . . . . . . . . 2 . . . . Scanalyzer 11 | . . . . . 2 . . . 4 . 2 . . . . . . . . . . . . 3 . . Insert Component 6 | . . . . . 1 . . . 2 . 1 . . . . . . . . . . . . 2 . . Analyze 5 | . . . . . 1 . . . 2 . 1 . . . . . . . . . . . . 1 . . Garrison Access Hacks 14 | . . . . . 1 . 2 . 4 . . . 1 . 1 . 1 . . 1 . 1 . 2 . . Unlock Access 7 | . . . . . 1 . . . 1 . . . 1 . 1 . 1 . . . . 1 . 1 . . Seal Access 7 | . . . . . . . 2 . 3 . . . . . . . . . . 1 . . . 1 . . Unauthorized Hacks 62 | . 5 . . . 3 . . . 21 . 1 . 5 . 3 . 4 . 2 1 . 8 . 8 . 1 Terminals 45 | . 5 . . . 3 . . . 15 . . . 3 . . . 3 . 2 1 . 5 . 8 . . Track 19 | . 2 . . . 1 . . . 6 . . . 2 . . . 1 . 1 . . 3 . 3 . . Assimilate 6 | . 2 . . . 1 . . . 2 . . . . . . . . . . . . . . 1 . . Botnet 16 | . . . . . 1 . . . 6 . . . 1 . . . 1 . 1 1 . 2 . 3 . . Disrupt 2 | . . . . . . . . . 1 . . . . . . . 1 . . . . . . . . . Operators 2 | . 1 . . . . . . . . . . . . . . . . . . . . . . 1 . . Fabricators 1 | . . . . . . . . . 1 . . . . . . . . . . . . . . . . . Siphon 1 | . . . . . . . . . 1 . . . . . . . . . . . . . . . . . Repair Stations . | . . . . . . . . . . . . . . . . . . . . . . . . . . . Recycling Units 3 | . . . . . . . . . 2 . 1 . . . . . . . . . . . . . . . Reject 1 | . . . . . . . . . 1 . . . . . . . . . . . . . . . . . Mask 1 | . . . . . . . . . 1 . . . . . . . . . . . . . . . . . Tunnel 1 | . . . . . . . . . . . 1 . . . . . . . . . . . . . . . Scanalyzers 5 | . . . . . . . . . 1 . . . 2 . 1 . . . . . . 1 . . . . Extract 5 | . . . . . . . . . 1 . . . 2 . 1 . . . . . . 1 . . . . Garrison Access 8 | . . . . . . . . . 2 . . . . . 2 . 1 . . . . 2 . . . 1 Reprogram 8 | . . . . . . . . . 2 . . . . . 2 . 1 . . . . 2 . . . 1 Data Cores Recovered 5 | . . . . . . . . . 1 . . . 1 . . . . . . . . . . 3 . . Used 3 | . . . . . . . . . . . . . 1 . . . . . . . . . . 2 . . Hacking Detections 93 | . 6 . . . 4 . 2 . 23 . 4 . 8 . 6 . 3 . 6 2 . 13 . 14 . 2 Full Trace Events 10 | . 1 . . . 1 . . . 1 . 1 . 2 . 1 . 1 . 1 . . 1 . . . . Feedback Events . | . . . . . . . . . . . . . . . . . . . . . . . . . . . Feedback Blocked . | . . . . . . . . . . . . . . . . . . . . . . . . . . . Robot Schematics Acquired . | . . . . . . . . . . . . . . . . . . . . . . . . . . . Robots Built . | . . . . . . . . . . . . . . . . . . . . . . . . . . . Matter . | . . . . . . . . . . . . . . . . . . . . . . . . . . . Time . | . . . . . . . . . . . . . . . . . . . . . . . . . . . Total Robot Build Rating . | . . . . . . . . . . . . . . . . . . . . . . . . . . . Part Schematics Acquired 42 | . . . . . 1 . . . 12 . 1 . 16 . 3 . . . . . . 7 . 2 . . Parts Built 15 | . . . . . . . . . 2 . 3 . 2 . 1 . . . . 2 . 3 . 2 . . Matter 1952 | . . . . . . . . . 294 . 380 . 124 . 168 . . . . 168 . 306 . 256 . 256 Time 782 | . . . . . . . . . 168 . 190 . 31 . 42 . . . . 84 . 75 . 64 . 128 Total Part Build Rating 59 | . . . . . . . . . 8 . 16 . 4 . 4 . . . . 8 . 3 . 16 . . Parts Repaired 13 | . 3 . . . 2 . . . 3 . . . . . 2 . 1 . . . . 2 . . . . Time 548 | . 78 . . . 58 . . . 132 . . . . . 100 . 28 . . . . 152 . . . . Parts Recycled . | . . . . . . . . . . . . . . . . . . . . . . . . . . . Recycled Matter 211 | . . . . . . . . . . . . . . . . . . . . . . 211 . . . . Retrieved Matter 211 | . . . . . . . . . . . . . . . . . . . . . . 211 . . . . Retrieved Components . | . . . . . . . . . . . . . . . . . . . . . . . . . . . Parts Scanalyzed 6 | . . . . . 1 . . . 2 . 1 . . . . . . . . . . . . 2 . . Part Schematics Acquired 5 | . . . . . 1 . . . 2 . 1 . . . . . . . . . . . . 1 . . Parts Damaged 1 | . . . . . 1 . . . . . . . . . . . . . . . . . . . . . Bothacking | -11 -10 -10 -10 -9 -8 -8 -7 -7 -7 -7 -6 -6 -6 -6 -6 -6 -5 -5 -5 -4 -4 -4 -4 -4 -4 -3 ------------ Run | Scr Mat Min Exi Min Mat Gar Fac Was Fac Gar Fac Was Fac Gar Fac Gar Fac Gar Fac Fac Was Fac Gar Fac Gar Res Used RIF Installer 7 | . . . . . . 1 . . . 1 . . . 1 . 1 . 1 . . . . 1 . 1 . Hotswap 1 | . . . . . . . . . . . . . . . . . . 1 . . . . . . . . Command Fork 1 | . . . . . . . . . . . . . . . . . . . . . . . . . 1 . Threat Obfuscator 1 | . . . . . . . . . . . . . . . . 1 . . . . . . . . . . Zone Cloak 1 | . . . . . . . . . . . . . . . . . . . . . . . 1 . . . Robot Detection 1 | . . . . . . . . . . 1 . . . . . . . . . . . . . . . . Watcher Feeds 1 | . . . . . . . . . . . . . . 1 . . . . . . . . . . . . Robots Hacked 96 | . . . . . . . . . 4 3 3 . . 11 4 8 5 2 17 8 1 10 9 11 . . Non-combat 41 | . . . . . . . . . . . 3 . . 1 2 . . . 11 7 . 8 . 9 . . Combat 55 | . . . . . . . . . 4 3 . . . 10 2 8 5 2 6 1 1 2 9 2 . . Robot Hacks Applied 118 | . . . . . . . . . 4 3 3 . . 13 4 9 6 2 19 12 1 15 10 17 . . parse_system 3 | . . . . . . . . . . . . . . 1 . . . . 1 . . 1 . . . . no_distress 3 | . . . . . . . . . . . . . . . . . . . 2 . . 1 . . . . find_chute 3 | . . . . . . . . . . . 2 . . . . . . . . 1 . . . . . . hold_bot 1 | . . . . . . . . . . . . . . . . . . . 1 . . . . . . . map_earth 1 | . . . . . . . . . . . . . . . . . . . . . . . . 1 . . find_fabricator 1 | . . . . . . . . . . . . . . . . . . . . 1 . . . . . . drop_inventory 9 | . . . . . . . . . . . 1 . . . 1 . . . 1 2 . 2 . 2 . . locate_stockpiles 2 | . . . . . . . . . . . . . . . . . . . . 1 . . . 1 . . find_recycling 4 | . . . . . . . . . . . . . . . 1 . . . 1 . . 2 . . . . ignore_parts 6 | . . . . . . . . . . . . . . . . . . . 2 2 . 2 . . . . find_station 1 | . . . . . . . . . . . . . . . . . . . . . . . . 1 . . deconstruct_bot 3 | . . . . . . . . . . . . . . . . . . . 3 . . . . . . . purge_threat 6 | . . . . . . . . . . . . . . . . . . . . . . 3 . 3 . . block_reporting 1 | . . . . . . . . . . . . . . . . . . . . . . . . 1 . . summon_haulers 1 | . . . . . . . . . . . . . . . . . . . . . . . . 1 . . map_route 4 | . . . . . . . . . . . . . . . . . . . . 1 . 1 . 2 . . mark_security 1 | . . . . . . . . . . . . . . . . . . . . 1 . . . . . . relay_feed 2 | . . . . . . . . . . . . . . . . . . . . 1 . . . 1 . . ignore_targets 1 | . . . . . . . . . . . . . . . . . . . . . 1 . . . . . disrupt_area 1 | . . . . . . . . . . . . . . . . 1 . . . . . . . . . . overload_power 7 | . . . . . . . . . . . . . . 2 . . 2 . 2 . . . 1 . . . disable_weapons 7 | . . . . . . . . . . . . . . 1 . 2 1 . . 2 . 1 . . . . reboot_system 3 | . . . . . . . . . 1 . . . . . 1 . . . . . . . . 1 . . go_dormant 1 | . . . . . . . . . . . . . . . . 1 . . . . . . . . . . overwrite_iff 14 | . . . . . . . . . 2 . . . . 6 . . . . 2 . . . 4 . . . streamctrl_high 1 | . . . . . . . . . . . . . . . . . . . 1 . . . . . . . formatsys_low 3 | . . . . . . . . . . . . . . . . . . . . . . 1 . 2 . . formatsys_high 28 | . . . . . . . . . 1 3 . . . 3 1 5 3 2 3 . . 1 5 1 . . Relay Couplers Released 115 | . . . . . . 11 1 . . 16 . . . 22 . 13 . 14 . . . 4 18 . 14 2 Machine Destruction 112 | . . . . . . 11 1 . . 16 . . . 22 . 13 . 14 . . . 1 18 . 14 2 Programmers 3 | . . . . . . . . . . . . . . . . . . . . . . 3 . . . . Attached 36 | . . . . . . . . . 2 4 1 . . 5 1 3 3 2 4 1 . . 5 2 . 3 Robots Rewired 17 | . . . . . . . . . . 6 . . . . . . . . . . . . 3 . 8 . Allies Hacked 2 | . . . . . . . . . . . . . . . . . . . . . . . . . . 2 Hacks Repelled 2 | . . . . . . . . . . . . . . . . . . . . . . 1 . 1 . . Allies | -11 -10 -10 -10 -9 -8 -8 -7 -7 -7 -7 -6 -6 -6 -6 -6 -6 -5 -5 -5 -4 -4 -4 -4 -4 -4 -3 -------- Run | Scr Mat Min Exi Min Mat Gar Fac Was Fac Gar Fac Was Fac Gar Fac Gar Fac Gar Fac Fac Was Fac Gar Fac Gar Res Total Allies 125 | . 1 3 . . 1 . 3 19 6 9 3 18 . 8 5 5 6 2 6 . . 5 12 3 8 2 Largest Group 20 | . 1 4 3 3 2 1 3 20 5 6 3 18 16 6 3 5 3 1 2 . . 4 8 10 7 6 Highest-Rated Group 650 | . 10 50 42 42 26 26 93 508 151 186 93 650 550 216 114 154 91 29 82 . . 172 393 458 374 347 Highest-Rated Ally 115 | . 10 16 16 16 26 26 31 35 33 32 32 50 46 81 41 32 49 29 41 . . 56 56 56 115 115 Total Orders 62 | . . . . 4 2 1 . . . . . 10 . . . . 5 . . . . 9 5 8 13 5 STAY 27 | . . . . 2 1 1 . . . . . . . . . . 3 . . . . 5 3 3 6 3 ROAM 1 | . . . . . . . . . . . . 1 . . . . . . . . . . . . . . FOLLOW 22 | . . . . 2 1 . . . . . . . . . . . 2 . . . . 3 2 3 7 2 AID 3 | . . . . . . . . . . . . . . . . . . . . . . 1 . 2 . . EXPLORE 1 | . . . . . . . . . . . . 1 . . . . . . . . . . . . . . RETURN 8 | . . . . . . . . . . . . 8 . . . . . . . . . . . . . . Ally Attacks 1376 | . . 30 . 9 1 . 40 114 52 27 52 169 162 31 43 52 44 2 33 . . 38 34 175 83 185 Total Damage 37513 | . . 259 . 74 13 . 764 5196 782 968 900 3117 3405 983 1624 1391 1283 37 843 . . 1139 1315 5850 3521 4049 Kills 210 | . . 6 . . . . 5 17 6 11 8 5 26 7 10 9 13 . 3 . . 7 3 33 17 24 Allies Corrupted 2 | . . . . . . . . . . . . . . . . . . . . . . 1 . 1 . . Allies Melted 1 | . . . . . . . . . . . . . . . . . . . 1 . . . . . . . Intel | -11 -10 -10 -10 -9 -8 -8 -7 -7 -7 -7 -6 -6 -6 -6 -6 -6 -5 -5 -5 -4 -4 -4 -4 -4 -4 -3 ------- Run | Scr Mat Min Exi Min Mat Gar Fac Was Fac Gar Fac Was Fac Gar Fac Gar Fac Gar Fac Fac Was Fac Gar Fac Gar Res Robot Analysis Total 1 | . 1 . . . . . . . . . . . . . . . . . . . . . . . . . Derelict Logs Recovered 3 | . . 2 . 1 . . . . . . . . . . . . . . . . . . . . . . Drone Launches 43 | . . . . . . . . . . . . 16 . . . . . . . . . . . . . 27 Drone Recoveries 13 | . . . . . . . . . . . . 13 . . . . . . . . . . . . . . Exploration | -11 -10 -10 -10 -9 -8 -8 -7 -7 -7 -7 -6 -6 -6 -6 -6 -6 -5 -5 -5 -4 -4 -4 -4 -4 -4 -3 ------------- Run | Scr Mat Min Exi Min Mat Gar Fac Was Fac Gar Fac Was Fac Gar Fac Gar Fac Gar Fac Fac Was Fac Gar Fac Gar Res Turns Passed 61195 | 96 2356 1538 737 1331 1839 3123 1147 595 5001 1639 1597 2104 1307 5296 2391 2796 1697 2816 2409 1456 2049 4017 4518 2334 3460 1546 Spaces Moved 25746 | 67 1012 729 403 711 726 1152 550 345 2624 695 799 558 763 1174 1014 1212 523 963 731 654 1074 1726 2085 1071 1593 792 Core 436 | 20 . . . . . . . . . 2 . 32 . 139 . . . . . . 10 . . . . 233 Treads 18221 | . 716 729 403 711 726 1152 243 53 1037 642 196 . . . 979 1212 523 963 686 . 216 1726 2085 1071 1593 559 Legs 1314 | . . . . . . . . . . . . . . . . . . . 4 462 848 . . . . . Wheels 5775 | 47 296 . . . . . 307 292 1587 51 603 526 763 1035 35 . . . 41 192 . . . . . . Hover . | . . . . . . . . . . . . . . . . . . . . . . . . . . . Flight . | . . . . . . . . . . . . . . . . . . . . . . . . . . . Fastest Speed 50 | 50 80 160 180 180 180 200 140 150 140 140 140 150 150 140 150 200 220 240 140 140 150 180 186 186 183 50 Average Speed 196 | 71 139 174 180 180 198 200 166 157 156 203 163 339 159 419 203 208 221 240 230 158 173 183 186 188 189 145 Slowest Speed 3150 | 80 180 180 180 180 200 240 200 200 200 2100 220 3150 160 2450 260 260 280 240 330 270 2100 186 186 190 203 230 Overloaded Moves . | . . . . . . . . . . . . . . . . . . . . . . . . . . . Propulsion Burnouts . | . . . . . . . . . . . . . . . . . . . . . . . . . . . Robots Hopped . | . . . . . . . . . . . . . . . . . . . . . . . . . . . Cave-ins Triggered . | . . . . . . . . . . . . . . . . . . . . . . . . . . . Exploration Rate (%) 56 | 5 98 98 71 94 47 85 16 94 46 71 17 97 12 80 19 81 7 91 16 15 96 31 97 24 99 24 Regions Visited 26 Branch Regions 3 Pre-discovered Areas 5 | . . 3 1 . . . . . . . 1 . . . . . . . . . . . . . . . Known Exits Taken 7 | . . . . . 1 . . . 1 . . . 1 . 1 . 1 . . . . 1 . 1 . . Unknown Exits Taken 6 | 1 1 1 1 1 . . . . . . . . . . . . . . 1 . . . . . . . Scrap Searched 2 | . . 1 . 1 . . . . . . . . . . . . . . . . . . . . . . Spaces Dug 168 | . 25 . . . . . . . 3 . . . . . 6 . . 2 1 96 . 5 24 4 . 2 Terrain Destroyed 1784 | . 30 . . . 8 4 14 3 148 41 39 10 3 2 9 22 136 10 104 105 . 185 130 129 176 476 Melee 8 | . 8 . . . . . . . . . . . . . . . . . . . . . . . . . Projectile 183 | . 22 . . . 8 4 . 3 22 1 14 10 3 1 9 2 . 3 9 16 . 27 16 7 2 4 AOE 1593 | . . . . . . . 14 . 126 40 25 . . 1 . 20 136 7 95 89 . 158 114 122 174 472 Terrain Rammed . | . . . . . . . . . . . . . . . . . . . . . . . . . . . Walls Destroyed . | . . . . . . . . . . . . . . . . . . . . . . . . . . . Machines Disabled . | . . . . . . . . . . . . . . . . . . . . . . . . . . . Actions | -11 -10 -10 -10 -9 -8 -8 -7 -7 -7 -7 -6 -6 -6 -6 -6 -6 -5 -5 -5 -4 -4 -4 -4 -4 -4 -3 --------- Run | Scr Mat Min Exi Min Mat Gar Fac Was Fac Gar Fac Was Fac Gar Fac Gar Fac Gar Fac Fac Was Fac Gar Fac Gar Res Total 33317 | 92 1738 974 416 744 976 1783 737 381 3154 845 959 719 822 1413 1241 1400 883 1313 1200 988 1237 2370 2622 1328 1953 1029 Wait 3885 | . 551 219 1 9 132 483 96 2 234 1 14 108 29 57 112 45 194 163 181 196 55 372 313 137 129 52 Move 25726 | 66 1011 728 402 710 725 1150 550 344 2624 694 799 557 763 1172 1014 1211 523 962 730 654 1073 1726 2083 1071 1592 792 Hop . | . . . . . . . . . . . . . . . . . . . . . . . . . . . Pick Up 466 | 7 27 5 4 3 9 15 20 7 26 16 17 7 6 19 11 22 12 29 33 27 23 35 26 13 27 20 Fast Attach 64 | 4 . 1 . . 5 2 . 2 2 4 4 . . 2 7 2 4 1 . 3 2 9 4 1 1 4 Attach 213 | 2 5 . . 1 1 3 6 . 4 4 6 5 . 8 3 11 10 19 43 11 12 8 12 5 18 16 Detach 17 | . . . . . . . . . 1 . . . . . . 2 1 2 . . 3 1 1 . 5 1 Swap 447 | . 17 1 2 3 10 16 15 3 40 15 25 5 3 22 18 24 31 24 37 12 7 46 25 14 18 14 Drop 342 | . 13 6 6 4 15 7 18 11 27 7 18 9 5 11 15 4 9 13 8 5 27 31 24 14 20 15 Fire 1846 | 13 101 13 1 7 76 87 24 12 175 50 76 28 16 90 60 63 99 94 166 80 32 130 100 68 70 115 Melee 13 | . 10 . . . . . . . . . . . . . . . . . . . 3 . . . . . Ram 4 | . . . . . . . . . 3 . . . . . . . . . 1 . . . . . . . Kick . | . . . . . . . . . . . . . . . . . . . . . . . . . . . Crush 42 | . 3 1 . 7 3 4 . . 2 . . . . . 1 . . 4 . . . 12 . 5 . . Escape Stasis 142 | . . . . . . 16 8 . 16 18 . . . 32 . 16 . 2 . . . . 22 . 12 . Rewire 110 | . . . . . . . . . . 36 . . . . . . . . 1 . . . 12 . 61 . Trap . | . . . . . . . . . . . . . . . . . . . . . . . . . . . Miscellaneous . | . . . . . . . . . . . . . . . . . . . . . . . . . . . Route ------- -11/Scrapyard -10/Materials (discovered 5 exits: [*Mat x3] / [*Min x2]) -10/Mines (discovered 3 exits: [*Mat x2] / *Exi) -10/Exiles -9/Mines (discovered 2 exits: *Mat x2) -8/Materials (discovered 3 exits: *Fac x2 / Gar) -8/Garrison (discovered 3 exits: *Fac x3) -7/Factory -7/Waste -7/Factory (discovered 7 exits: *Fac x2 / *Sto x2 / *Low x2 / Gar) -7/Garrison (discovered 2 exits: *Fac x2) -6/Factory -6/Waste -6/Factory (discovered 2 exits: *Fac / Gar) -6/Garrison (discovered 3 exits: *Fac x3) -6/Factory (discovered 2 exits: *Fac / Gar) -6/Garrison (discovered 3 exits: *Fac x3) -5/Factory (discovered 3 exits: Upp x2 / Gar) -5/Garrison (discovered 3 exits: *Fac x3) -5/Factory (discovered 2 exits: *Fac / *Upp) -4/Factory -4/Waste -4/Factory (discovered 4 exits: *Res / Upp x2 / Gar) -4/Garrison (discovered 3 exits: *Fac x3) -4/Factory (discovered 3 exits: Upp x2 / Gar) -4/Garrison (discovered 3 exits: *Res x3) -3/Research History --------- Turn | Location | Event 6 | -11/Scrapyard | Discovered new exit (range 15) 97 | -11/Scrapyard | Entered Materials 316 | -10/Materials | Build established: Mutant 596 | -10/Materials | Discovered new exit (range 4) 647 | -10/Materials | Discovered new exit (range 15) 726 | -10/Materials | Discovered new exit (range 8) 1046 | -10/Materials | Repaired Lgt. Treads 1076 | -10/Materials | Repaired Assault Rifle? 1136 | -10/Materials | Repaired Lgt. Assault Rifle 1479 | -10/Materials | Discovered new exit (range 15) 2184 | -10/Materials | Central database locked down 2330 | -10/Materials | Discovered new exit (range 16) 2453 | -10/Materials | Entered Mines 2453 | -10/Mines | Accompanied by 1 ally 2454 | -10/Mines | Learned location of Storage (-7) 2492 | -10/Mines | Assisted by bots powering up and referring to "LRC-V3" 2557 | -10/Mines | Assembled infested the area 2562 | -10/Mines | Assisted by a Guerilla fighting off Assembled 2794 | -10/Mines | Build established: Commander-Mutant 2941 | -10/Mines | Deemed a non-threat by the Exiles lab entrance 3048 | -10/Mines | Learned location of Recycling (-7) 3242 | -10/Mines | Discovered new exit (range 12) 3309 | -10/Mines | Build established: Mutant 3510 | -10/Mines | Discovered new exit (range 5) 3678 | -10/Mines | Received a Rocket Launcher from a helpful Derelict 3840 | -10/Mines | Found a damaged Exp. Sensor Array with a note attached 3858 | -10/Mines | Found Prototype Device 3983 | -10/Mines | Discovered new exit (range 5) 3991 | -10/Mines | Entered Exiles 3991 | -10/Exiles | Accompanied by 3 allies 4035 | -10/Exiles | Met 8R-AWN 4067 | -10/Exiles | Met EX-HEX 4117 | -10/Exiles | Met EX-BIN 4141 | -10/Exiles | Met EX-DEC 4162 | -10/Exiles | Learned location of Zion (-7) 4476 | -10/Exiles | Aligned with FarCom system 4477 | -10/Exiles | Given EX-Vault access code 4521 | -10/Exiles | Opened EX-Vault 4537 | -10/Exiles | Found Army-in-a-Box 4558 | -10/Exiles | Build established: Hauler-Mutant 4579 | -10/Exiles | Warned to stay clear of 0b10 Research branches 4711 | -10/Exiles | Discovered new exit (range 10) 4728 | -10/Exiles | Left Exiles lab with Army-in-a-Box 4728 | -10/Exiles | Entered Mines 4728 | -9/Mines | Accompanied by 3 allies 4743 | -9/Mines | Met a Derelict bent on vengeance 4894 | -9/Mines | Discovered new exit (range 10) 4986 | -9/Mines | Joined a pair of Derelicts in attacking an 0b10 outpost 5564 | -9/Mines | Discovered new exit (range 6) 5796 | -9/Mines | Learned location of 1 exit from Materials 6059 | -9/Mines | Entered Materials 6059 | -8/Materials | Accompanied by 2 allies 6059 | -8/Materials | Evolved 4 slots: Utility x4 6060 | -8/Materials | Identified exit to Factory 6429 | -8/Materials | Repaired Lgt. Treads 6616 | -8/Materials | Repaired Mni. Grenade Launcher? 6751 | -8/Materials | Discovered exit to Factory (range 5) 7408 | -8/Materials | Identified exit to Garrison 7603 | -8/Materials | Identified Exp. Sensor Array 7898 | -8/Materials | Entered Garrison 7898 | -8/Garrison | Accompanied by 1 ally 8191 | -8/Garrison | Triggered checkpoint 8194 | -8/Garrison | Triggered checkpoint 8220 | -8/Garrison | Destroyed 8 combat bots 8590 | -8/Garrison | Triggered checkpoint 8722 | -8/Garrison | Triggered checkpoint 8810 | -8/Garrison | Discovered exit to Factory (range 12) 9273 | -8/Garrison | Discovered exit to Factory (range 15) 9342 | -8/Garrison | Installed Relay Interface Framework 9414 | -8/Garrison | Triggered checkpoint 9446 | -8/Garrison | Garrison Relay disabled 9683 | -8/Garrison | Garrison Relay disabled 9867 | -8/Garrison | Garrison Relay disabled 10176 | -8/Garrison | Discovered exit to Factory (range 15) 11021 | -8/Garrison | Entered Factory 11021 | -7/Factory | Evolved 2 slots: Utility x2 11343 | -7/Factory | Build established: Scavenger-Mutant 11421 | -7/Factory | First assault squad dispatched 11500 | -7/Factory | Allied Derelicts emerged from ambush trap array 11866 | -7/Factory | Build established: Hauler-Mutant 12168 | -7/Factory | Sucked down chute 12168 | -7/Factory | Entered Waste 12175 | -7/Waste | 1 allies followed down the chute 12193 | -7/Waste | Warlord forces began an assault 12294 | -7/Waste | Spotted C-40 Crusher 12297 | -7/Waste | Spotted C-40 Crusher 12299 | -7/Waste | Spotted C-40 Crusher 12304 | -7/Waste | Allies destroyed C-40 Crusher 12305 | -7/Waste | Allies destroyed C-40 Crusher 12308 | -7/Waste | Allies destroyed C-40 Crusher 12349 | -7/Waste | Spotted C-40 Crusher 12354 | -7/Waste | Allies destroyed C-40 Crusher 12390 | -7/Waste | Spotted C-40 Crusher 12397 | -7/Waste | Spotted C-40 Crusher 12399 | -7/Waste | Allies destroyed C-40 Crusher 12410 | -7/Waste | Allies destroyed C-40 Crusher 12555 | -7/Waste | Discovered new exit (range 12) 12763 | -7/Waste | Entered Factory 12763 | -7/Factory | Accompanied by 5 allies 13102 | -7/Factory | Build established: Hacker-Mutant 13242 | -7/Factory | Discovered new exit (range 11) 13443 | -7/Factory | Repaired KE Penetrator? 13582 | -7/Factory | Repaired Hvy. Shock Bomb Launcher? 14053 | -7/Factory | Identified exit to Storage 14053 | -7/Factory | Identified exit to Lower Caves 14965 | -7/Factory | Fabricated Hrd. Heavy Armor Plating? 15295 | -7/Factory | Discovered new exit (range 8) 15551 | -7/Factory | Build established: Hauler-Mutant 15770 | -7/Factory | Discovered new exit (range 18) 16061 | -7/Factory | Garrison activated, responded to threat 16363 | -7/Factory | First assault squad dispatched 16657 | -7/Factory | Fabricated Hrd. Heavy Armor Plating? 17202 | -7/Factory | Repaired Broken Imp. Cooling System 17380 | -7/Factory | Core integrity fell below 50% 17689 | -7/Factory | Garrison activated, responded to threat 17764 | -7/Factory | Identified exit to Garrison 17764 | -7/Factory | Entered Garrison 18158 | -7/Garrison | Triggered checkpoint 18174 | -7/Garrison | Triggered checkpoint 18327 | -7/Garrison | Discovered new exit (range 8) 18398 | -7/Garrison | Triggered checkpoint 18441 | -7/Garrison | Garrison Relay disabled 18614 | -7/Garrison | Discovered new exit (range 15) 18660 | -7/Garrison | Expanded RIF knowledge: Robot Detection 18704 | -7/Garrison | Triggered checkpoint 18735 | -7/Garrison | Garrison Relay disabled 18744 | -7/Garrison | Build established: Bothacker-Mutant 18949 | -7/Garrison | Triggered checkpoint 18952 | -7/Garrison | Garrison Relay disabled 18955 | -7/Garrison | Triggered checkpoint 18958 | -7/Garrison | Garrison Relay disabled 19403 | -7/Garrison | Entered Factory 19403 | -6/Factory | Accompanied by 3 allies 19403 | -6/Factory | Evolved 2 slots: Utility x2 19667 | -6/Factory | Fabricated KE Penetrator? 19842 | -6/Factory | Lost 3 parts (2n1u) 20040 | -6/Factory | Fabricated Hrd. Heavy Armor Plating? 20103 | -6/Factory | First assault squad dispatched 20236 | -6/Factory | Allied Derelicts emerged from ambush trap array 20309 | -6/Factory | Local fabrication network quarantined 21000 | -6/Factory | Sucked down chute 21000 | -6/Factory | Entered Waste 21053 | -6/Waste | Spotted C-40 Crusher 21060 | -6/Waste | Allies destroyed C-40 Crusher 21071 | -6/Waste | Spotted C-40 Crusher 21082 | -6/Waste | Allies destroyed C-40 Crusher 21094 | -6/Waste | Found Damper Plating 21098 | -6/Waste | Spotted C-40 Crusher 21112 | -6/Waste | Destroyed C-40 Crusher 21112 | -6/Waste | Spotted C-40 Crusher 21129 | -6/Waste | Allies destroyed C-40 Crusher 21281 | -6/Waste | Spotted C-40 Crusher 21306 | -6/Waste | Allies destroyed C-40 Crusher 21349 | -6/Waste | Spotted C-40 Crusher 21358 | -6/Waste | Allies destroyed C-40 Crusher 21519 | -6/Waste | Discovered new exit (range 13) 21535 | -6/Waste | Warlord forces began an assault 23104 | -6/Waste | Entered Factory 23104 | -6/Factory | Accompanied by 16 allies 23481 | -6/Factory | Garrison activated, responded to threat 23888 | -6/Factory | Discovered new exit (range 7) 24335 | -6/Factory | Garrison activated, responded to threat 24343 | -6/Factory | Fabricated Arm. Wheel? 24411 | -6/Factory | Identified exit to Garrison 24411 | -6/Factory | Entered Garrison 24411 | -6/Garrison | Accompanied by 6 allies 24419 | -6/Garrison | Expanded RIF knowledge: Patrol Navigation 24526 | -6/Garrison | Triggered checkpoint 24589 | -6/Garrison | Garrison Relay disabled 24702 | -6/Garrison | Spotted B-75 Beast 24710 | -6/Garrison | Triggered checkpoint 24724 | -6/Garrison | Triggered checkpoint 24726 | -6/Garrison | Triggered checkpoint 24815 | -6/Garrison | Lost 3 parts (1n1u1w) 24843 | -6/Garrison | Destroyed B-75 Beast 25115 | -6/Garrison | Spotted B-75 Beast 25115 | -6/Garrison | Spotted B-75 Beast 25263 | -6/Garrison | Discovered new exit (range 14) 25469 | -6/Garrison | Discovered new exit (range 12) 25528 | -6/Garrison | Triggered checkpoint 25580 | -6/Garrison | Garrison Relay disabled 25743 | -6/Garrison | Discovered new exit (range 8) 25796 | -6/Garrison | Triggered checkpoint 25854 | -6/Garrison | Garrison Relay disabled 26012 | -6/Garrison | Triggered checkpoint 26029 | -6/Garrison | Garrison Relay disabled 26168 | -6/Garrison | Garrison Relay disabled 26176 | -6/Garrison | Triggered checkpoint 29707 | -6/Garrison | Entered Factory 29707 | -6/Factory | Accompanied by 2 allies 29886 | -6/Factory | Discovered new exit (range 15) 30509 | -6/Factory | Fabricated Hrd. Heavy Armor Plating? 31277 | -6/Factory | Repaired Med. Reactive Plating? 31597 | -6/Factory | Repaired KE Penetrator? 31756 | -6/Factory | Garrison activated, responded to threat 32098 | -6/Factory | Identified exit to Garrison 32098 | -6/Factory | Entered Garrison 32098 | -6/Garrison | Accompanied by 2 allies 32111 | -6/Garrison | Expanded RIF knowledge: Threat Obfuscation 32196 | -6/Garrison | Triggered checkpoint 32315 | -6/Garrison | Triggered checkpoint 32590 | -6/Garrison | Triggered checkpoint 32619 | -6/Garrison | Triggered checkpoint 32872 | -6/Garrison | Discovered new exit (range 14) 32976 | -6/Garrison | Triggered checkpoint 32994 | -6/Garrison | Garrison Relay disabled 33170 | -6/Garrison | Discovered new exit (range 13) 33254 | -6/Garrison | Triggered checkpoint 33283 | -6/Garrison | Garrison Relay disabled 33364 | -6/Garrison | Triggered checkpoint 33654 | -6/Garrison | Triggered checkpoint 33662 | -6/Garrison | Discovered new exit (range 13) 33764 | -6/Garrison | Triggered checkpoint 33811 | -6/Garrison | Garrison Relay disabled 34894 | -6/Garrison | Entered Factory 34894 | -5/Factory | Accompanied by 1 ally 34894 | -5/Factory | Evolved 2 slots: Power x1, Utility x1 35002 | -5/Factory | Allied Derelicts emerged from ambush trap array 35083 | -5/Factory | Build established: Botlord-Mutant 35100 | -5/Factory | Repaired KE Penetrator? 35102 | -5/Factory | Garrison activated, responded to threat 35434 | -5/Factory | Identified exit to Upper Caves 35507 | -5/Factory | Garrison activated, responded to threat 35526 | -5/Factory | Build established: Bothacker-Mutant 35808 | -5/Factory | Garrison activated, responded to threat 36270 | -5/Factory | Garrison activated, responded to threat 36425 | -5/Factory | First assault squad dispatched 36496 | -5/Factory | P-70 Sage assimilated allied Y-64 Sentinel 36541 | -5/Factory | Lost 4 parts (2p1n1u) 36591 | -5/Factory | Identified exit to Garrison 36591 | -5/Factory | Entered Garrison 36603 | -5/Garrison | Expanded RIF knowledge: Hotswap 36688 | -5/Garrison | Triggered checkpoint 36894 | -5/Garrison | Garrison Relay disabled 37444 | -5/Garrison | Triggered checkpoint 37558 | -5/Garrison | Triggered checkpoint 37715 | -5/Garrison | System corruption reached 10% 37764 | -5/Garrison | Lost 4 parts (1n2u1w) 38160 | -5/Garrison | Triggered checkpoint 38186 | -5/Garrison | Garrison Relay disabled 38254 | -5/Garrison | Discovered new exit (range 10) 38388 | -5/Garrison | Triggered checkpoint 38462 | -5/Garrison | Discovered new exit (range 11) 38521 | -5/Garrison | Build established: Botlord-Mutant 38552 | -5/Garrison | Triggered checkpoint 38751 | -5/Garrison | Garrison Relay disabled 38915 | -5/Garrison | Triggered checkpoint 38996 | -5/Garrison | Discovered new exit (range 9) 39196 | -5/Garrison | Garrison Relay disabled 39407 | -5/Garrison | Entered Factory 39707 | -5/Factory | First assault squad dispatched 39968 | -5/Factory | Discovered exit to Upper Caves (range 3) 40293 | -5/Factory | Lost 3 parts (1n2w) 41141 | -5/Factory | Core integrity fell below 50% 41543 | -5/Factory | System corruption reached 30% 41561 | -5/Factory | Lost 12 parts (1p4n2u5w) 41605 | -5/Factory | Core integrity fell below 20% 41676 | -5/Factory | Lost 8 parts (2p2n2u2w) 41748 | -5/Factory | Build established: Bothacker-Mutant 41752 | -5/Factory | Lost 3 parts (1n1u1w) 41796 | -5/Factory | Discovered new exit (range 15) 41816 | -5/Factory | Entered another Factory area 41816 | -4/Factory | Evolved 2 slots: Propulsion x2 42189 | -4/Factory | Garrison activated, responded to threat 42213 | -4/Factory | Lost 3 parts (2n1w) 42559 | -4/Factory | Found Mni. Smartbomb Launcher 42860 | -4/Factory | Fabricated System Backup Module (x2) 43272 | -4/Factory | Spotted B-86 Titan 43272 | -4/Factory | Sucked down chute 43272 | -4/Factory | Entered Waste 43272 | -4/Waste | The area was eerily silent 43483 | -4/Waste | Found Prototype Launcher 43484 | -4/Waste | Identified Hellfire Missile Launcher 43678 | -4/Waste | Discovered new exit (range 12) 44750 | -4/Waste | A Compactor rumbled back to life 44750 | -4/Waste | Spotted C-40 Crusher 44836 | -4/Waste | Destroyed C-40 Crusher 44922 | -4/Waste | Found Damper Plating 45321 | -4/Waste | Entered Factory 45761 | -4/Factory | Discovered new exit (range 13) 46002 | -4/Factory | Repaired Broken Lgt. Quantum Reactor? 46529 | -4/Factory | Discovered new exit (range 33) 46529 | -4/Factory | Discovered new exit (range 55) 46756 | -4/Factory | Identified exit to Upper Caves 46839 | -4/Factory | Garrison activated, responded to threat 47632 | -4/Factory | Fabricated Hcp. Storage Unit? 47676 | -4/Factory | Fabricated Hcp. Storage Unit (x1) 47713 | -4/Factory | Fabricated Hcp. Storage Unit? 49037 | -4/Factory | Repaired Hvy. Antimatter Reactor? 49313 | -4/Factory | Garrison activated, responded to threat 49333 | -4/Factory | Identified exit to Garrison 49338 | -4/Factory | Entered Garrison 49338 | -4/Garrison | Accompanied by 3 allies 49437 | -4/Garrison | Triggered checkpoint 49481 | -4/Garrison | Garrison Relay disabled 49596 | -4/Garrison | Triggered checkpoint 50071 | -4/Garrison | Spotted B-86 Titan 50132 | -4/Garrison | Destroyed B-86 Titan 50177 | -4/Garrison | Found Hvy. Reflective Plating 50217 | -4/Garrison | Build established: Botlord-Mutant 50270 | -4/Garrison | Triggered checkpoint 50316 | -4/Garrison | Discovered new exit (range 9) 50373 | -4/Garrison | Triggered checkpoint 50397 | -4/Garrison | Garrison Relay disabled 50769 | -4/Garrison | Spotted B-86 Titan 50805 | -4/Garrison | Destroyed B-86 Titan 50820 | -4/Garrison | Discovered new exit (range 12) 50844 | -4/Garrison | Triggered checkpoint 50948 | -4/Garrison | Found Unknown Device 50949 | -4/Garrison | Identified Antimissile System 50958 | -4/Garrison | Garrison Relay disabled 51083 | -4/Garrison | Triggered checkpoint 51158 | -4/Garrison | Triggered checkpoint 51178 | -4/Garrison | Garrison Relay disabled 51223 | -4/Garrison | Discovered new exit (range 10) 51254 | -4/Garrison | Expanded RIF knowledge: Zone Cloak 51386 | -4/Garrison | Triggered checkpoint 53856 | -4/Garrison | Entered Factory 53856 | -4/Factory | Accompanied by 8 allies 54106 | -4/Factory | First assault squad dispatched 54708 | -4/Factory | Fabricated Arm. Heavy Treads? 54849 | -4/Factory | Local fabrication network quarantined 55943 | -4/Factory | Destroyed 8 combat bots 56010 | -4/Factory | Build established: Bothacker-Mutant 56148 | -4/Factory | Garrison activated, responded to threat 56190 | -4/Factory | Identified exit to Garrison 56190 | -4/Factory | Entered Garrison 56295 | -4/Garrison | Core integrity fell below 50% 56345 | -4/Garrison | Lost 6 parts (3u3w) 56560 | -4/Garrison | Build established: Hauler-Mutant 56602 | -4/Garrison | Phase Generator disabled 56862 | -4/Garrison | Triggered checkpoint 56897 | -4/Garrison | Garrison Relay disabled 57047 | -4/Garrison | Triggered checkpoint 57089 | -4/Garrison | Triggered checkpoint 57100 | -4/Garrison | Spotted B-86 Titan 57111 | -4/Garrison | Destroyed B-86 Titan 57126 | -4/Garrison | Triggered checkpoint 57148 | -4/Garrison | Triggered checkpoint 57314 | -4/Garrison | Triggered checkpoint 57376 | -4/Garrison | Garrison Relay disabled 57423 | -4/Garrison | Discovered new exit (range 10) 57452 | -4/Garrison | Expanded RIF knowledge: Command Fork 57594 | -4/Garrison | Spotted B-86 Titan 57638 | -4/Garrison | Discovered new exit (range 15) 57748 | -4/Garrison | Triggered checkpoint 57759 | -4/Garrison | Garrison Relay disabled 57884 | -4/Garrison | Rewired B-86 Titan 58743 | -4/Garrison | Garrison Relay disabled 58806 | -4/Garrison | Discovered new exit (range 9) 59650 | -4/Garrison | Entered Research 59650 | -3/Research | Accompanied by 4 allies 59650 | -3/Research | Evolved 2 slots: Utility x1, Weapon x1 60150 | -3/Research | First assault squad dispatched 60399 | -3/Research | Garrison activated, responded to threat 60711 | -3/Research | Found Hvy. Reflective Plating 60719 | -3/Research | Destroyed 13 combat bots 60753 | -3/Research | High security lockdown imminent 60785 | -3/Research | Destroyed 7 combat bots 60797 | -3/Research | Garrison activated, responded to threat 60833 | -3/Research | High security lockdown engaged 60860 | -3/Research | Destroyed 7 combat bots 60898 | -3/Research | Destroyed 7 combat bots 60922 | -3/Research | Lost 12 parts (1p3n4u4w) 60965 | -3/Research | Lost 4 parts (1p3u) 60967 | -3/Research | Destroyed 11 combat bots 61067 | -3/Research | Released all parts (10) 61171 | -3/Research | Core integrity fell below 50% 61187 | -3/Research | Core integrity fell below 20% 61196 | -3/Research | Destroyed by S-43 Plague with Heavy Machine Gun Last Messages --------------- 61076_ Terminal disabled. 61076_ Slug penetrates Army Drone. 61076_ Army Drone destroyed. 61099_ Acquired 43 matter. 61103_ ALERT: Heavy assault forces dispatched. 61109_ System corrupted: Heat flow error (+256). 61115_ Acquired Prototype Device. 61116_ Identified Exp. Heat Sink. 61116_ Malfunction: Meltdown. 61133_ Acquired Adv. Hacking Suite. 61175_ Detecting nearby Garrison Access. 61184_ Garrison Access under remote control. 61187_ C-30 ARC bursts open, deploying its payload. 61187_ G-73 Enforcer unfolds itself. 61187_ G-67 Veteran unfolds itself. 61187_ L-61 Swordsman unfolds itself. 61187_ E-15 Imp unfolds itself. 61195_ S-43 Plague suffers critical hit. 61195_ S-43 Plague destroyed. [Achievement: Rambo] Map ----- +----------------------------------------------------+ | ???????????????????+ #??? | | ???????????????????# ######## ####??? | | ???????????????????# #### ^ #??????# #?????? | | ???????????????#####/#### """ #??????# #?????? | | ???????????????# # """ #?######+###???? | | ???????????????# ! # """ #?# #???? | | ???????????????# "" # #?#= ! #???? | | ???????????????# """ # ### #???? | | ???????????????#! "R / / !#???? | | ???????????????# """ #Y ######### #???? | | ???????????????# "" # #???????# #???? | | ???????????????# # #???????# #???? | | ???????????????# # #???????# ##?## | | ???????????????########## ######### ### | | ????????????????????????# ######+# ### | | ????????????????????????# | | ????????????????????????# | | ????????????????????????####### | | ??????????????????????????????# Y # ### | | ????????????????????########### " " # | | ????????????????????# """ # b " " # | | ????????????????????# "Y" =# ""G"" # | | ????????????????????# " " #Y Y Y # | | ????????????????????# [ s pl #??? | | ????????????????????# =s #e #??? | | ????????????????????# @ss # ###+####????## | | ????????????????????# ## #????????????? | | ????????????????????# ##l #????????????? | | ????????????????????############gg #????????????? | | ???????????????????????????????#g #????????????? | | ???????????????????????????????# #????????????? | | ???????????????????????????????# #????????????? | | ???????????????????????????????# #????????????? | | ???????????????????????????????# #????????????? | | ??????????????????????????????? #????????????? | | ???????????????????????????????#" #????????????? | | ???????????????????????????????#%" #????????????? | | ????????????????????????????????" #????????????? | | ???????????????????????????????? ??????????????? | | ?????????????????????????????????????????????????? | | ?????????????w???????????Y???????????????????????? | | ?????????????Y??????????YYY??????????????????????? | | ?????????????????????????Y???????????????????????? | | ?????????????????????????????????????????????????? | | ?????????????????????????????????????????????????? | | ?????????????????????????????????????????????????? | | ?????????????????????????????????????????????????? | | ?????????????????????????????????????????????????? | | ?????????????????????????????????????????????????? | | ?????????????????????????????????????????????????? | +----------------------------------------------------+ Best States ------------- Heat Dissipation 96 Coolant Potential 65 Energy Generation 45 Energy Capacity 580 Matter Stores 300 Matter Capacity 300 Sight Range 16 Terrain Scan Density 10 Additional Mass Support 18 Base Temperature (-) 100 Armor Coverage 2400 Resistance: KI 30 Resistance: TH 30 Resistance: EM 90 Utility Shielding 90 Point Defense Rating 240 Evasion (%) 50 Targeting Accuracy 8 Target Analysis 8 Recoil Reduction 4 Energy Filtering 30 Kinecelleration 40 Offensive Hacking 22 Defensive Hacking 22 Relay Coupler Types 66 Relay Coupler Value 3 Item Schematics ----------------- Exp. Sensor Array | -8/Materials | Scanalyzed Imp. Hacking Suite | -7/Factory | Hacked Hrd. Heavy Armor Plating | -7/Factory | Scanalyzed Hcp. Storage Unit | -7/Factory | Scanalyzed Actuator Array | -7/Factory | Extracted Maul | -7/Factory | Extracted Component Analysis Suite | -7/Factory | Extracted Terrain Scan Processor | -7/Factory | Extracted Gatling Laser | -7/Factory | Extracted Core Analyzer | -7/Factory | Extracted Airjet | -7/Factory | Extracted Aerolev Unit | -7/Factory | Extracted Hvy. Ion Cannon | -7/Factory | Extracted KE Penetrator | -6/Factory | Scanalyzed Lrg. Battery | -6/Factory | Extracted System Backup Module | -6/Factory | Extracted Force Rifle | -6/Factory | Extracted Cld. Plasma Cannon | -6/Factory | Extracted Gravmag Array | -6/Factory | Extracted Magnetic Acceleration Cannon | -6/Factory | Extracted Maneuvering Thrusters | -6/Factory | Extracted Gauss Rifle | -6/Factory | Extracted Weapon Cycler | -6/Factory | Extracted Com. Matter Pod | -6/Factory | Extracted Imp. Armor Integrity Analyzer | -6/Factory | Extracted Great Axe | -6/Factory | Extracted Xenon Bombardment Thruster | -6/Factory | Extracted Cld. Aerolev Unit | -6/Factory | Extracted System Shield | -6/Factory | Extracted Arm. Wheel | -6/Factory | Extracted Kinecellerator | -6/Factory | Extracted Imp. Utility Shielding | -6/Factory | Extracted Matter Compressor | -6/Factory | Extracted HERF Cannon | -4/Factory | Extracted Adv. Melee Analysis Suite | -4/Factory | Extracted Adv. Actuator Array | -4/Factory | Extracted Imp. Force Booster | -4/Factory | Extracted Com. Battery | -4/Factory | Extracted Adv. Coolant Injector | -4/Factory | Extracted Centrium Greatsword | -4/Factory | Extracted Hvy. Shock Bomb Launcher | -4/Factory | Scanalyzed Adv. Powered Armor | -4/Factory | Hacked Robot Schematics ------------------ None Fabricated ------------ Hrd. Heavy Armor Plating | x1 | -7/Factory Hrd. Heavy Armor Plating | x1 | -7/Factory KE Penetrator | x2 | -6/Factory Hrd. Heavy Armor Plating | x1 | -6/Factory Arm. Wheel | x2 | -6/Factory Hrd. Heavy Armor Plating | x1 | -6/Factory System Backup Module | x2 | -4/Factory Hcp. Storage Unit | x1 | -4/Factory Hcp. Storage Unit | x1 | -4/Factory Hcp. Storage Unit | x1 | -4/Factory Arm. Heavy Treads | x2 | -4/Factory | Preloaded Alien Tech Used ----------------- None Achievements -------------- Assimilation Complete Error 47 Factory Defaults Infiltrator Pwned Rambo Challenges ------------ None Game ------ Seed InsulatedSiegeBeamcaster Manual? 0 Play Time 11:31:06 Cumulative 254.5 hours Start 2020.12.22 @ 02:08:46 End 2020.12.26 @ 17:11:10 Sessions 29 Manual Loads 0 Difficulty Rogue Special Mode None Game No. 87 Rogue 83 Adventurer 4 Explorer 0 Win Type - Total 3 Types 2/0/1/0/0/0/0/0/0 Lore% 65 Gallery% 74 Achievement% 59 Wizard Run 0 Options --------- ASCII 1 Keyboard 0 Movement Arrows Keybinds 0 Fullscreen 1 Font 18/Terminus Map View 76x50 Tactical HUD 1 Map Filters NONE Filters NONE Steam 1 RUN: 4043774f-0f9f-4f96-91d4-f9dfe999e7a5